[Event "7th Paul Keres Memorial Festival 2026 Rapid"]
[Site "ESTONIA Resort Hotel & Spa conference center, EE"]
[Date "2026.08.02"]
[Round "3"]
[White "Laurusas, Tomas"]
[Black "Kubicka, Anna"]
[Result "1-0"]
[Board "4"]
[TimeControl "12+3"]
[WhiteFideId "12803731"]
[BlackFideId "1152254"]
[WhiteElo "2462"]
[BlackElo "2105"]
[WhiteTitle "GM"]
[BlackTitle "WIM"]
[WhiteClock "0:00:27"]
[BlackClock "0:00:10"]
[Variant "Standard"]
[EndDate "2026.08.02"]
[EndTime "09:17:00"]

1. c4 {[%clk 0:12:05]}  e5 {[%clk 0:12:04]} 2. Nc3 {[%clk 0:12:06]}  Nf6 {[%clk 0:12:05]} 3. Nf3 {[%clk 0:12:08]}  Nc6 {[%clk 0:12:05]}
4. d4 {[%clk 0:12:09]}  exd4 {[%clk 0:11:51]} 5. Nxd4 {[%clk 0:12:10]}  Bc5 {[%clk 0:11:06]} 6. Nb3 {[%clk 0:12:08]}  Bb4 {[%clk 0:11:02]}
7. Bd2 {[%clk 0:12:09]}  O-O {[%clk 0:10:59]} 8. e3 {[%clk 0:11:32]}  Re8 {[%clk 0:10:28]} 9. Rc1 {[%clk 0:11:25]}  d5 {[%clk 0:09:46]}
10. a3 {[%clk 0:11:23]}  Bf8 {[%clk 0:08:53]} 11. cxd5 {[%clk 0:11:20]}  Nxd5 {[%clk 0:08:46]} 12. Be2 {[%clk 0:11:15]}  Ne5 {[%clk 0:08:11]}
13. O-O {[%clk 0:11:07]}  Nf6 {[%clk 0:07:39]} 14. Qc2 {[%clk 0:11:01]}  b6 {[%clk 0:04:53]} 15. Rfd1 {[%clk 0:10:55]}  Bb7 {[%clk 0:04:54]}
16. e4 {[%clk 0:10:09]}  Qe7 {[%clk 0:03:39]} 17. f3 {[%clk 0:09:58]}  c5 {[%clk 0:03:28]} 18. Be3 {[%clk 0:09:31]}  Rad8 {[%clk 0:02:52]}
19. Nd2 {[%clk 0:09:29]}  Bc8 {[%clk 0:02:23]} 20. Nc4 {[%clk 0:09:18]}  Nxc4 {[%clk 0:01:42]} 21. Bxc4 {[%clk 0:09:19]}  Be6 {[%clk 0:01:44]}
22. Bb5 {[%clk 0:09:20]}  Rxd1+ {[%clk 0:01:44]} 23. Rxd1 {[%clk 0:09:21]}  Rd8 {[%clk 0:01:46]} 24. a4 {[%clk 0:09:23]}  Qc7 {[%clk 0:01:32]}
25. Bf1 {[%clk 0:08:57]}  Rxd1 {[%clk 0:01:28]} 26. Qxd1 {[%clk 0:08:58]}  Bd6 {[%clk 0:01:24]} 27. g3 {[%clk 0:08:13]}  Be5 {[%clk 0:01:20]}
28. Nb5 {[%clk 0:07:58]}  Qd7 {[%clk 0:01:18]} 29. Qxd7 {[%clk 0:07:49]}  Nxd7 {[%clk 0:01:03]} 30. Nc3 {[%clk 0:07:41]}  Bb3 {[%clk 0:00:32]}
31. Bb5 {[%clk 0:07:33]}  Bxc3 {[%clk 0:00:14]} 32. bxc3 {[%clk 0:07:34]}  Ne5 {[%clk 0:00:15]} 33. Kf2 {[%clk 0:06:18]}  Nc4 {[%clk 0:00:16]}
34. Bc1 {[%clk 0:06:19]}  Nd6 {[%clk 0:00:13]} 35. Bc6 {[%clk 0:06:21]}  Kf8 {[%clk 0:00:09]} 36. a5 {[%clk 0:05:33]}  Ke7 {[%clk 0:00:07]}
37. g4 {[%clk 0:05:21]}  Nc4 {[%clk 0:00:07]} 38. axb6 {[%clk 0:05:13]}  axb6 {[%clk 0:00:09]} 39. f4 {[%clk 0:05:04]}  Na5 {[%clk 0:00:08]}
40. Ba8 {[%clk 0:05:06]}  Ba4 {[%clk 0:00:07]} 41. Ke3 {[%clk 0:04:31]}  Bc6 {[%clk 0:00:09]} 42. Bxc6 {[%clk 0:04:33]}  Nxc6 {[%clk 0:00:11]}
43. e5 {[%clk 0:04:35]}  b5 {[%clk 0:00:06]} 44. Ke4 {[%clk 0:04:35]}  b4 {[%clk 0:00:08]} 45. c4 {[%clk 0:03:36]}  Na5 {[%clk 0:00:08]}
46. Kd5 {[%clk 0:03:37]}  Nb3 {[%clk 0:00:10]} 47. Be3 {[%clk 0:03:09]}  g6 {[%clk 0:00:12]} 48. f5 {[%clk 0:03:02]}  gxf5 {[%clk 0:00:13]}
49. gxf5 {[%clk 0:03:04]}  h5 {[%clk 0:00:15]} 50. h4 {[%clk 0:01:55]}  Ke8 {[%clk 0:00:17]} 51. Bf2 {[%clk 0:01:05]}  Kd7 {[%clk 0:00:15]}
52. Bg1 {[%clk 0:01:05]}  Ke8 {[%clk 0:00:16]} 53. Be3 {[%clk 0:01:07]}  Ke7 {[%clk 0:00:15]} 54. Ke4 {[%clk 0:00:34]}  Ke8 {[%clk 0:00:13]}
55. Kd3 {[%clk 0:00:18]}  Kd7 {[%clk 0:00:13]} 56. Bf2 {[%clk 0:00:17]}  Ke8 {[%clk 0:00:15]} 57. Ke4 {[%clk 0:00:19]}  Kd7 {[%clk 0:00:13]}
58. Kd5 {[%clk 0:00:19]}  Ke8 {[%clk 0:00:14]} 59. Be3 {[%clk 0:00:21]}  Kd7 {[%clk 0:00:13]} 60. f6 {[%clk 0:00:24]}  Ke8 {[%clk 0:00:13]}
61. e6 {[%clk 0:00:25]}  Na5 {[%clk 0:00:06]} 62. Bxc5 {[%clk 0:00:23]}  b3 {[%clk 0:00:08]} 63. Ba3 {[%clk 0:00:25]}  Nxc4 {[%clk 0:00:04]}
64. Kxc4 {[%clk 0:00:16]}  fxe6 {[%clk 0:00:04]} 65. Kxb3 {[%clk 0:00:18]}  Kf7 {[%clk 0:00:04]} 66. Bb2 {[%clk 0:00:20]}  Kg6 {[%clk 0:00:05]}
67. Kc4 {[%clk 0:00:22]}  Kf7 {[%clk 0:00:07]} 68. Kc5 {[%clk 0:00:23]}  Ke8 {[%clk 0:00:08]} 69. Kd6 {[%clk 0:00:25]}  Kf7 {[%clk 0:00:10]}
70. Ke5 {[%clk 0:00:27]} 1-0

[Event "7th Paul Keres Memorial Festival 2026 Rapid"]
[Site "ESTONIA Resort Hotel & Spa conference center, EE"]
[Date "2026.08.02"]
[Round "3"]
[White "Blokhin, Sofia"]
[Black "Keinanen, Toivo"]
[Result "0-1"]
[Board "5"]
[TimeControl "12+3"]
[WhiteFideId "4508190"]
[BlackFideId "509825"]
[WhiteElo "2037"]
[BlackElo "2585"]
[WhiteTitle "WFM"]
[BlackTitle "IM"]
[WhiteClock "0:00:18"]
[BlackClock "0:06:25"]
[Variant "Standard"]
[EndDate "2026.08.02"]
[EndTime "09:07:08"]

1. c4 {[%clk 0:12:05]}  e6 {[%clk 0:12:05]} 2. d4 {[%clk 0:12:06]}  b6 {[%clk 0:12:00]} 3. Nc3 {[%clk 0:12:07]}  Bb4 {[%clk 0:12:02]}
4. a3 {[%clk 0:12:03]}  Bxc3+ {[%clk 0:12:03]} 5. bxc3 {[%clk 0:12:04]}  Bb7 {[%clk 0:12:02]} 6. f3 {[%clk 0:12:04]}  f5 {[%clk 0:11:30]}
7. Nh3 {[%clk 0:11:44]}  Nf6 {[%clk 0:11:07]} 8. Nf2 {[%clk 0:11:38]}  O-O {[%clk 0:11:05]} 9. e3 {[%clk 0:11:30]}  c5 {[%clk 0:11:05]}
10. Bd3 {[%clk 0:11:25]}  Nc6 {[%clk 0:11:05]} 11. O-O {[%clk 0:11:18]}  Rc8 {[%clk 0:10:36]} 12. Bb2 {[%clk 0:10:15]}  Qe7 {[%clk 0:10:03]}
13. e4 {[%clk 0:09:50]}  fxe4 {[%clk 0:09:59]} 14. fxe4 {[%clk 0:09:31]}  cxd4 {[%clk 0:09:43]} 15. cxd4 {[%clk 0:09:28]}  e5 {[%clk 0:09:45]}
16. d5 {[%clk 0:09:25]}  Na5 {[%clk 0:09:47]} 17. Rc1 {[%clk 0:08:38]}  d6 {[%clk 0:09:31]} 18. Nh1 {[%clk 0:05:48]}  Nd7 {[%clk 0:08:32]}
19. Ng3 {[%clk 0:05:43]}  g6 {[%clk 0:08:34]} 20. Qg4 {[%clk 0:05:34]}  Kh8 {[%clk 0:08:19]} 21. Rc2 {[%clk 0:04:13]}  Nc5 {[%clk 0:07:59]}
22. Be2 {[%clk 0:04:04]}  Nab3 {[%clk 0:07:29]} 23. Rf3 {[%clk 0:03:10]}  Rce8 {[%clk 0:07:09]} 24. Bf1 {[%clk 0:02:10]}  Bc8 {[%clk 0:06:45]}
25. Rxf8+ {[%clk 0:02:05]}  Rxf8 {[%clk 0:06:47]} 26. Qd1 {[%clk 0:01:49]}  Qf6 {[%clk 0:06:45]} 27. Qe1 {[%clk 0:01:41]}  h5 {[%clk 0:06:35]}
28. Rc3 {[%clk 0:00:25]}  Nd4 {[%clk 0:06:27]} 29. Re3 {[%clk 0:00:25]}  Nc2 {[%clk 0:06:27]} 30. Qd2 {[%clk 0:00:15]}  Nxe3 {[%clk 0:06:26]}
31. Qxe3 {[%clk 0:00:16]}  h4 {[%clk 0:06:23]} 32. Qh6+ {[%clk 0:00:18]}  Kg8 {[%clk 0:06:25]} 0-1

[Event "7th Paul Keres Memorial Festival 2026 Rapid"]
[Site "ESTONIA Resort Hotel & Spa conference center, EE"]
[Date "2026.08.02"]
[Round "3"]
[White "Kazakouski, Valery"]
[Black "Raag, Ardi"]
[Result "1-0"]
[Board "6"]
[TimeControl "12+3"]
[WhiteFideId "13507443"]
[BlackFideId "4509269"]
[WhiteElo "2528"]
[BlackElo "2023"]
[WhiteTitle "GM"]
[WhiteClock "0:01:08"]
[BlackClock "0:00:06"]
[Variant "Standard"]
[EndDate "2026.08.02"]
[EndTime "09:14:25"]

1. d4 {[%clk 0:12:02]}  d5 {[%clk 0:12:05]} 2. c4 {[%clk 0:12:03]}  e6 {[%clk 0:12:07]} 3. Nc3 {[%clk 0:12:04]}  Nf6 {[%clk 0:12:08]}
4. Bg5 {[%clk 0:12:06]}  Nbd7 {[%clk 0:12:09]} 5. cxd5 {[%clk 0:11:53]}  exd5 {[%clk 0:12:11]} 6. e3 {[%clk 0:11:54]}  c6 {[%clk 0:11:58]}
7. Bd3 {[%clk 0:11:54]}  h6 {[%clk 0:11:52]} 8. Bf4 {[%clk 0:11:51]}  Be7 {[%clk 0:11:00]} 9. h3 {[%clk 0:11:50]}  O-O {[%clk 0:10:46]}
10. Nf3 {[%clk 0:11:51]}  Re8 {[%clk 0:10:21]} 11. O-O {[%clk 0:11:48]}  a5 {[%clk 0:09:48]} 12. Bh2 {[%clk 0:11:05]}  Bf8 {[%clk 0:08:03]}
13. Rc1 {[%clk 0:10:58]}  Ne4 {[%clk 0:07:46]} 14. Qc2 {[%clk 0:10:49]}  Ng5 {[%clk 0:06:39]} 15. Ne5 {[%clk 0:10:26]}  Nxe5 {[%clk 0:06:02]}
16. dxe5 {[%clk 0:10:27]}  Ne6 {[%clk 0:05:32]} 17. f4 {[%clk 0:09:53]}  Bc5 {[%clk 0:05:24]} 18. Rce1 {[%clk 0:09:30]}  d4 {[%clk 0:03:30]}
19. Ne4 {[%clk 0:09:24]}  Bb4 {[%clk 0:03:31]} 20. f5 {[%clk 0:08:34]}  Ng5 {[%clk 0:03:15]} 21. Nxg5 {[%clk 0:07:38]}  Bxe1 {[%clk 0:02:19]}
22. Nxf7 {[%clk 0:07:27]}  Kxf7 {[%clk 0:02:07]} 23. Bc4+ {[%clk 0:07:26]}  Kf8 {[%clk 0:02:02]} 24. Rxe1 {[%clk 0:06:53]}  dxe3 {[%clk 0:01:30]}
25. e6 {[%clk 0:05:02]}  Qd2 {[%clk 0:00:27]} 26. Qxd2 {[%clk 0:04:36]}  exd2 {[%clk 0:00:29]} 27. Bd6+ {[%clk 0:04:37]}  Kg8 {[%clk 0:00:25]}
28. Rd1 {[%clk 0:04:39]}  b5 {[%clk 0:00:24]} 29. Bf1 {[%clk 0:04:08]}  Bxe6 {[%clk 0:00:25]} 30. fxe6 {[%clk 0:04:06]}  Rxe6 {[%clk 0:00:22]}
31. Rxd2 {[%clk 0:03:57]}  Re1 {[%clk 0:00:06]} 32. Bg3 {[%clk 0:03:23]}  Rc1 {[%clk 0:00:07]} 33. Bf2 {[%clk 0:03:19]}  Rf8 {[%clk 0:00:05]}
34. g4 {[%clk 0:03:19]}  c5 {[%clk 0:00:04]} 35. Rd5 {[%clk 0:02:39]}  c4 {[%clk 0:00:04]} 36. Rxb5 {[%clk 0:02:33]}  Rc2 {[%clk 0:00:01]}
37. Rf5 {[%clk 0:02:35]}  Rxf5 {[%clk 0:00:07]} 38. gxf5 {[%clk 0:02:36]}  Rxb2 {[%clk 0:00:08]} 39. Bxc4+ {[%clk 0:02:38]}  Kh7 {[%clk 0:00:09]}
40. Bf7 {[%clk 0:02:25]}  Rb4 {[%clk 0:00:09]} 41. Kg2 {[%clk 0:02:12]}  Rf4 {[%clk 0:00:11]} 42. Be6 {[%clk 0:01:54]}  Ra4 {[%clk 0:00:11]}
43. Kf3 {[%clk 0:01:56]}  Rb4 {[%clk 0:00:10]} 44. Be1 {[%clk 0:01:52]}  Ra4 {[%clk 0:00:10]} 45. Bb3 {[%clk 0:01:27]}  Rd4 {[%clk 0:00:10]}
46. Bxa5 {[%clk 0:01:25]}  Rd3+ {[%clk 0:00:10]} 47. Kg2 {[%clk 0:01:26]}  h5 {[%clk 0:00:07]} 48. Bf7 {[%clk 0:01:09]}  Ra3 {[%clk 0:00:06]}
49. Bb4 {[%clk 0:01:07]}  Ra4 {[%clk 0:00:06]} 50. a3 {[%clk 0:01:08]} 1-0

[Event "7th Paul Keres Memorial Festival 2026 Rapid"]
[Site "ESTONIA Resort Hotel & Spa conference center, EE"]
[Date "2026.08.02"]
[Round "3"]
[White "Praczukowski, Stanislaw"]
[Black "Harikrishnan.A.Ra"]
[Result "0-1"]
[Board "7"]
[TimeControl "12+3"]
[WhiteFideId "1182730"]
[BlackFideId "5081483"]
[WhiteElo "2153"]
[BlackElo "2404"]
[BlackTitle "GM"]
[WhiteClock "0:00:06"]
[BlackClock "0:00:16"]
[Variant "Standard"]
[EndDate "2026.08.02"]
[EndTime "09:17:20"]

1. d4 {[%clk 0:12:04]}  Nf6 {[%clk 0:12:02]} 2. Nf3 {[%clk 0:12:05]}  g6 {[%clk 0:12:03]} 3. g3 {[%clk 0:12:04]}  Bg7 {[%clk 0:12:02]}
4. Bg2 {[%clk 0:11:57]}  O-O {[%clk 0:12:06]} 5. O-O {[%clk 0:11:57]}  d6 {[%clk 0:12:07]} 6. Nbd2 {[%clk 0:11:50]}  Nc6 {[%clk 0:11:41]}
7. b3 {[%clk 0:10:56]}  e5 {[%clk 0:11:40]} 8. dxe5 {[%clk 0:10:56]}  Ng4 {[%clk 0:11:34]} 9. Bb2 {[%clk 0:10:56]}  Ngxe5 {[%clk 0:11:34]}
10. Nxe5 {[%clk 0:10:52]}  Nxe5 {[%clk 0:11:36]} 11. Qc1 {[%clk 0:10:47]}  c6 {[%clk 0:11:32]} 12. c4 {[%clk 0:10:42]}  Bg4 {[%clk 0:11:33]}
13. Nf3 {[%clk 0:10:38]}  Re8 {[%clk 0:10:23]} 14. Qd2 {[%clk 0:10:10]}  Bxf3 {[%clk 0:09:32]} 15. exf3 {[%clk 0:09:55]}  Qf6 {[%clk 0:08:48]}
16. Bxe5 {[%clk 0:08:58]}  Rxe5 {[%clk 0:08:49]} 17. Rad1 {[%clk 0:08:33]}  Bf8 {[%clk 0:07:48]} 18. f4 {[%clk 0:08:25]}  Re6 {[%clk 0:07:33]}
19. Qb4 {[%clk 0:06:30]}  Qe7 {[%clk 0:07:17]} 20. Rfe1 {[%clk 0:05:54]}  a5 {[%clk 0:07:18]} 21. Qd2 {[%clk 0:05:24]}  a4 {[%clk 0:07:03]}
22. Bh3 {[%clk 0:04:20]}  Rxe1+ {[%clk 0:06:37]} 23. Rxe1 {[%clk 0:04:22]}  Qf6 {[%clk 0:06:38]} 24. Qb4 {[%clk 0:03:56]}  axb3 {[%clk 0:05:01]}
25. axb3 {[%clk 0:03:41]}  Ra7 {[%clk 0:04:49]} 26. Qb6 {[%clk 0:03:12]}  Qc3 {[%clk 0:04:30]} 27. Qxa7 {[%clk 0:01:35]}  Qxe1+ {[%clk 0:04:32]}
28. Bf1 {[%clk 0:01:36]}  Qb4 {[%clk 0:04:06]} 29. Qa4 {[%clk 0:01:13]}  Qb6 {[%clk 0:04:00]} 30. b4 {[%clk 0:00:55]}  d5 {[%clk 0:02:59]}
31. cxd5 {[%clk 0:00:47]}  cxd5 {[%clk 0:03:00]} 32. b5 {[%clk 0:00:46]}  Bc5 {[%clk 0:02:43]} 33. Qa2 {[%clk 0:00:26]}  Qe6 {[%clk 0:01:53]}
34. Bd3 {[%clk 0:00:22]}  b6 {[%clk 0:01:49]} 35. Kg2 {[%clk 0:00:19]}  Bd4 {[%clk 0:01:29]} 36. Qe2 {[%clk 0:00:18]}  Qd6 {[%clk 0:01:26]}
37. h4 {[%clk 0:00:19]}  Qf6 {[%clk 0:01:09]} 38. h5 {[%clk 0:00:13]}  Kg7 {[%clk 0:01:11]} 39. hxg6 {[%clk 0:00:13]}  hxg6 {[%clk 0:01:12]}
40. Qf3 {[%clk 0:00:15]}  Qd6 {[%clk 0:01:08]} 41. f5 {[%clk 0:00:11]}  g5 {[%clk 0:01:06]} 42. Qh5 {[%clk 0:00:08]}  Bf6 {[%clk 0:01:00]}
43. Qg4 {[%clk 0:00:09]}  Qa3 {[%clk 0:00:58]} 44. Qf3 {[%clk 0:00:07]}  Qc5 {[%clk 0:00:48]} 45. Qg4 {[%clk 0:00:09]}  Qc3 {[%clk 0:00:49]}
46. Qf3 {[%clk 0:00:11]}  Qd4 {[%clk 0:00:50]} 47. Bf1 {[%clk 0:00:08]}  Be7 {[%clk 0:00:49]} 48. Qe3 {[%clk 0:00:07]}  Qf6 {[%clk 0:00:48]}
49. Bd3 {[%clk 0:00:08]}  Bc5 {[%clk 0:00:49]} 50. Qf3 {[%clk 0:00:10]}  Qd4 {[%clk 0:00:46]} 51. Qe2 {[%clk 0:00:09]}  Kf6 {[%clk 0:00:46]}
52. Qf3 {[%clk 0:00:11]}  Ke7 {[%clk 0:00:31]} 53. Qe2+ {[%clk 0:00:09]}  Kd6 {[%clk 0:00:33]} 54. Qf3 {[%clk 0:00:11]}  f6 {[%clk 0:00:30]}
55. Qe2 {[%clk 0:00:11]}  Qe5 {[%clk 0:00:31]} 56. Qf3 {[%clk 0:00:08]}  Qb2 {[%clk 0:00:30]} 57. Qe2 {[%clk 0:00:08]}  Qe5 {[%clk 0:00:30]}
58. Qf3 {[%clk 0:00:11]}  Bd4 {[%clk 0:00:30]} 59. Qe2 {[%clk 0:00:11]}  Kc5 {[%clk 0:00:30]} 60. Qc2+ {[%clk 0:00:11]}  Bc3 {[%clk 0:00:31]}
61. Qe2 {[%clk 0:00:10]}  Kb4 {[%clk 0:00:23]} 62. Qc2 {[%clk 0:00:08]}  Qe1 {[%clk 0:00:20]} 63. Qe2 {[%clk 0:00:05]}  d4 {[%clk 0:00:09]}
64. Qc2 {[%clk 0:00:05]}  Qd2 {[%clk 0:00:08]} 65. Qb1+ {[%clk 0:00:06]}  Bb2 {[%clk 0:00:09]} 66. Qc2 {[%clk 0:00:07]}  Qxc2 {[%clk 0:00:09]}
67. Bxc2 {[%clk 0:00:09]}  Kc3 {[%clk 0:00:13]} 68. Bd1 {[%clk 0:00:05]}  Kd2 {[%clk 0:00:14]} 69. Bg4 {[%clk 0:00:04]}  d3 {[%clk 0:00:16]}
70. Kf1 {[%clk 0:00:06]}  Kc1 {[%clk 0:00:16]} 0-1

[Event "7th Paul Keres Memorial Festival 2026 Rapid"]
[Site "ESTONIA Resort Hotel & Spa conference center, EE"]
[Date "2026.08.02"]
[Round "3"]
[White "Mayorau, Mikita"]
[Black "Rajandu, Aaron"]
[Result "1-0"]
[Board "8"]
[TimeControl "12+3"]
[WhiteFideId "13501720"]
[BlackFideId "4514734"]
[WhiteElo "2392"]
[BlackElo "2148"]
[WhiteTitle "GM"]
[WhiteClock "0:05:17"]
[BlackClock "0:04:11"]
[Variant "Standard"]
[EndDate "2026.08.02"]
[EndTime "09:05:14"]

1. d4 {[%clk 0:12:01]}  d5 {[%clk 0:12:03]} 2. c4 {[%clk 0:12:02]}  e6 {[%clk 0:12:04]} 3. Nc3 {[%clk 0:12:03]}  Nf6 {[%clk 0:12:06]}
4. cxd5 {[%clk 0:12:05]}  exd5 {[%clk 0:12:07]} 5. Bg5 {[%clk 0:12:06]}  c6 {[%clk 0:12:06]} 6. e3 {[%clk 0:12:08]}  h6 {[%clk 0:12:04]}
7. Bh4 {[%clk 0:12:10]}  Be7 {[%clk 0:12:05]} 8. Bd3 {[%clk 0:12:11]}  O-O {[%clk 0:12:04]} 9. Nge2 {[%clk 0:12:12]}  Re8 {[%clk 0:12:03]}
10. O-O {[%clk 0:12:11]}  Nbd7 {[%clk 0:12:04]} 11. Qc2 {[%clk 0:12:10]}  a5 {[%clk 0:11:59]} 12. Rae1 {[%clk 0:12:10]}  Ne4 {[%clk 0:11:17]}
13. Bxe7 {[%clk 0:12:07]}  Qxe7 {[%clk 0:11:18]} 14. Na4 {[%clk 0:09:37]}  Nd6 {[%clk 0:10:29]} 15. Nc1 {[%clk 0:09:14]}  b5 {[%clk 0:10:20]}
16. Nc3 {[%clk 0:08:45]}  Nf6 {[%clk 0:09:56]} 17. a4 {[%clk 0:07:54]}  b4 {[%clk 0:08:15]} 18. Nb1 {[%clk 0:07:34]}  Be6 {[%clk 0:07:43]}
19. Nd2 {[%clk 0:07:32]}  Qd7 {[%clk 0:07:06]} 20. Ncb3 {[%clk 0:07:17]}  Nb7 {[%clk 0:06:26]} 21. Rc1 {[%clk 0:07:05]}  Rec8 {[%clk 0:06:28]}
22. Nc5 {[%clk 0:06:29]}  Nxc5 {[%clk 0:06:16]} 23. Qxc5 {[%clk 0:06:31]}  Qb7 {[%clk 0:06:12]} 24. Nb3 {[%clk 0:06:27]}  Nd7 {[%clk 0:05:37]}
25. Qd6 {[%clk 0:06:27]}  Qb8 {[%clk 0:04:27]} 26. Qxb8 {[%clk 0:05:53]}  Raxb8 {[%clk 0:04:27]} 27. Nxa5 {[%clk 0:05:19]}  c5 {[%clk 0:04:25]}
28. dxc5 {[%clk 0:05:18]}  Nxc5 {[%clk 0:04:27]} 29. Bb5 {[%clk 0:05:19]}  Ra8 {[%clk 0:04:20]} 30. Nc6 {[%clk 0:05:16]}  Kf8 {[%clk 0:04:11]}
31. Rxc5 {[%clk 0:05:17]} 1-0

[Event "7th Paul Keres Memorial Festival 2026 Rapid"]
[Site "ESTONIA Resort Hotel & Spa conference center, EE"]
[Date "2026.08.02"]
[Round "3"]
[White "Jevglevski, Lev"]
[Black "Jakubowski, Krzysztof"]
[Result "0-1"]
[Board "9"]
[TimeControl "12+3"]
[WhiteFideId "4524225"]
[BlackFideId "1112848"]
[WhiteElo "1934"]
[BlackElo "2365"]
[BlackTitle "GM"]
[WhiteClock "0:01:26"]
[BlackClock "0:03:32"]
[Variant "Standard"]
[EndDate "2026.08.02"]
[EndTime "09:09:09"]

1. e4 {[%clk 0:12:05]}  c5 {[%clk 0:12:03]} 2. Nf3 {[%clk 0:12:05]}  e6 {[%clk 0:12:04]} 3. d4 {[%clk 0:12:07]}  cxd4 {[%clk 0:12:05]}
4. Nxd4 {[%clk 0:12:07]}  Nc6 {[%clk 0:12:06]} 5. Nc3 {[%clk 0:12:05]}  d6 {[%clk 0:12:07]} 6. Be3 {[%clk 0:12:02]}  a6 {[%clk 0:12:08]}
7. Qd2 {[%clk 0:12:02]}  Nf6 {[%clk 0:12:08]} 8. f3 {[%clk 0:12:02]}  Ne5 {[%clk 0:11:34]} 9. g4 {[%clk 0:11:55]}  b5 {[%clk 0:11:22]}
10. a3 {[%clk 0:11:43]}  Bb7 {[%clk 0:10:46]} 11. O-O-O {[%clk 0:11:34]}  Rc8 {[%clk 0:10:43]} 12. Kb1 {[%clk 0:11:32]}  Nfd7 {[%clk 0:10:29]}
13. Bf4 {[%clk 0:09:57]}  Be7 {[%clk 0:10:05]} 14. Be2 {[%clk 0:08:41]}  O-O {[%clk 0:07:50]} 15. Nb3 {[%clk 0:08:28]}  Rc7 {[%clk 0:07:43]}
16. h4 {[%clk 0:07:50]}  Qa8 {[%clk 0:07:42]} 17. Na5 {[%clk 0:06:51]}  Rfc8 {[%clk 0:07:39]} 18. Na2 {[%clk 0:06:04]}  Rxc2 {[%clk 0:07:23]}
19. Qxc2 {[%clk 0:06:01]}  Rxc2 {[%clk 0:07:23]} 20. Kxc2 {[%clk 0:06:00]}  Bxe4+ {[%clk 0:07:21]} 21. fxe4 {[%clk 0:05:18]}  Qxe4+ {[%clk 0:07:21]}
22. Kc1 {[%clk 0:05:01]}  Qxf4+ {[%clk 0:07:15]} 23. Rd2 {[%clk 0:04:07]}  Nc5 {[%clk 0:06:52]} 24. Nc3 {[%clk 0:03:56]}  Nc4 {[%clk 0:03:58]}
25. Nxc4 {[%clk 0:03:53]}  bxc4 {[%clk 0:03:56]} 26. Kc2 {[%clk 0:03:36]}  d5 {[%clk 0:03:53]} 27. Rf1 {[%clk 0:03:35]}  Qe5 {[%clk 0:03:45]}
28. Bf3 {[%clk 0:03:30]}  Nb3 {[%clk 0:03:38]} 29. Rdd1 {[%clk 0:02:23]}  Bxh4 {[%clk 0:03:36]} 30. Rh1 {[%clk 0:01:29]}  Nd4+ {[%clk 0:03:30]}
31. Rxd4 {[%clk 0:01:26]}  Qxd4 {[%clk 0:03:32]} 0-1

[Event "7th Paul Keres Memorial Festival 2026 Rapid"]
[Site "ESTONIA Resort Hotel & Spa conference center, EE"]
[Date "2026.08.02"]
[Round "4"]
[White "Shirov, Alexei"]
[Black "Mayorau, Mikita"]
[Result "1/2-1/2"]
[Board "1"]
[TimeControl "12+3"]
[WhiteFideId "2209390"]
[BlackFideId "13501720"]
[WhiteElo "2616"]
[BlackElo "2392"]
[WhiteTitle "GM"]
[BlackTitle "GM"]
[WhiteClock "0:00:12"]
[BlackClock "0:00:11"]
[Variant "Standard"]
[EndDate "2026.08.02"]
[EndTime "09:53:11"]

1. e4 {[%clk 0:12:04]}  d6 {[%clk 0:11:55]} 2. d4 {[%clk 0:12:05]}  Nf6 {[%clk 0:11:56]} 3. Nc3 {[%clk 0:12:06]}  g6 {[%clk 0:11:58]}
4. f4 {[%clk 0:12:03]}  Bg7 {[%clk 0:12:00]} 5. Nf3 {[%clk 0:12:04]}  O-O {[%clk 0:12:01]} 6. Bd3 {[%clk 0:11:18]}  Na6 {[%clk 0:12:00]}
7. e5 {[%clk 0:11:00]}  Ne8 {[%clk 0:10:11]} 8. h4 {[%clk 0:10:22]}  Nb4 {[%clk 0:10:09]} 9. h5 {[%clk 0:10:09]}  Nxd3+ {[%clk 0:10:10]}
10. Qxd3 {[%clk 0:10:10]}  Bf5 {[%clk 0:09:59]} 11. Qe2 {[%clk 0:10:00]}  c5 {[%clk 0:09:47]} 12. dxc5 {[%clk 0:09:18]}  dxe5 {[%clk 0:09:42]}
13. Nxe5 {[%clk 0:08:53]}  f6 {[%clk 0:06:28]} 14. Qc4+ {[%clk 0:07:03]}  e6 {[%clk 0:06:26]} 15. g4 {[%clk 0:04:58]}  fxe5 {[%clk 0:06:10]}
16. gxf5 {[%clk 0:04:59]}  gxf5 {[%clk 0:04:47]} 17. h6 {[%clk 0:04:28]}  Bf6 {[%clk 0:04:20]} 18. fxe5 {[%clk 0:04:10]}  Bxe5 {[%clk 0:04:19]}
19. Qxe6+ {[%clk 0:04:10]}  Rf7 {[%clk 0:04:20]} 20. Rg1+ {[%clk 0:02:34]}  Kf8 {[%clk 0:04:20]} 21. Bg5 {[%clk 0:02:35]}  Bf6 {[%clk 0:03:21]}
22. Bxf6 {[%clk 0:02:01]}  Nxf6 {[%clk 0:03:16]} 23. Rd1 {[%clk 0:01:44]}  Qe7 {[%clk 0:03:09]} 24. Qxe7+ {[%clk 0:01:39]}  Rxe7+ {[%clk 0:03:10]}
25. Kf2 {[%clk 0:01:36]}  Rc8 {[%clk 0:02:45]} 26. b4 {[%clk 0:00:59]}  Ng4+ {[%clk 0:02:40]} 27. Kf3 {[%clk 0:00:42]}  Re3+ {[%clk 0:02:37]}
28. Kf4 {[%clk 0:00:43]}  Rxc3 {[%clk 0:02:38]} 29. Rd7 {[%clk 0:00:45]}  Nxh6 {[%clk 0:00:29]} 30. Rxh7 {[%clk 0:00:24]}  Rc4+ {[%clk 0:00:16]}
31. Ke5 {[%clk 0:00:16]}  Nf7+ {[%clk 0:00:17]} 32. Kd5 {[%clk 0:00:08]}  Rxb4 {[%clk 0:00:10]} 33. Rgg7 {[%clk 0:00:04]}  Rc7 {[%clk 0:00:08]}
34. Rg6 {[%clk 0:00:05]}  Re4 {[%clk 0:00:09]} 35. Rf6 {[%clk 0:00:06]}  Re5+ {[%clk 0:00:10]} 36. Kd4 {[%clk 0:00:08]}  Rd7+ {[%clk 0:00:12]}
37. Kc4 {[%clk 0:00:09]}  Re4+ {[%clk 0:00:12]} 38. Kb5 {[%clk 0:00:11]}  a6+ {[%clk 0:00:11]} 39. Kb6 {[%clk 0:00:11]}  Rb4+ {[%clk 0:00:12]}
40. Ka7 {[%clk 0:00:10]}  Kg8 {[%clk 0:00:13]} 41. Rh1 {[%clk 0:00:06]}  f4 {[%clk 0:00:13]} 42. Rg1+ {[%clk 0:00:06]}  Kf8 {[%clk 0:00:15]}
43. Rf1 {[%clk 0:00:08]}  a5 {[%clk 0:00:13]} 44. R1xf4 {[%clk 0:00:06]}  b6+ {[%clk 0:00:14]} 45. Ka6 {[%clk 0:00:07]}  bxc5 {[%clk 0:00:13]}
46. Rxb4 {[%clk 0:00:05]}  axb4 {[%clk 0:00:14]} 47. Kb5 {[%clk 0:00:06]}  Rc7 {[%clk 0:00:15]} 48. Rf5 {[%clk 0:00:07]}  Ke7 {[%clk 0:00:10]}
49. Rxc5 {[%clk 0:00:09]}  Rb7+ {[%clk 0:00:11]} 50. Kc6 {[%clk 0:00:08]}  Nd8+ {[%clk 0:00:10]} 51. Kd5 {[%clk 0:00:10]}  Ne6 {[%clk 0:00:10]}
52. Rc6 {[%clk 0:00:08]}  Rb5+ {[%clk 0:00:11]} 53. Kc4 {[%clk 0:00:09]}  Rb8 {[%clk 0:00:13]} 54. c3 {[%clk 0:00:09]}  Kd7 {[%clk 0:00:12]}
55. Ra6 {[%clk 0:00:10]}  Nc7 {[%clk 0:00:13]} 56. Rh6 {[%clk 0:00:10]}  bxc3 {[%clk 0:00:13]} 57. Kxc3 {[%clk 0:00:12]}  Ne8 {[%clk 0:00:11]} 1/2-1/2